bitfinex-derivatives/quotes_BTCF0:USTF0_20241116
["timestamp","ask_amount","ask_price","bid_price","bid_amount"]
[1731730410774,0.01006327,91176.0,91172.0,0.3608]
[1731730411071,0.01006327,91175.0,91172.0,0.3608]
[1731730411273,0.05421742,91183.0,91162.0,0.12234]
[1731730411474,0.01012408,91174.0,91162.0,0.12234]
[1731730411672,0.10401763,91176.0,91162.0,0.12234]
[1731730411879,0.01012408,91173.0,91162.0,0.12234]
[1731730412173,0.01012408,91175.0,91162.0,0.12234]
[1731730412374,0.01012408,91174.0,91162.0,0.12234]
[1731730412573,0.01012408,91173.0,91162.0,0.12234]
[1731730412783,0.06823853,91170.0,91162.0,0.09104]
[1731730413085,0.01012408,91169.0,91162.0,0.09104]
[1731730413283,0.01012408,91169.0,91161.0,0.3608]
[1731730414783,0.01017551,91168.0,91161.0,0.3608]
[1731730414971,0.01017551,91167.0,91161.0,0.3608]
[1731730415287,0.01015722,91166.0,91161.0,0.3608]
[1731730415673,0.01015722,91165.0,91161.0,0.3608]
[1731730415877,0.01015722,91164.0,91161.0,0.3608]
[1731730416085,0.01015722,91163.0,91161.0,0.3608]
[1731730416284,0.01015722,91162.0,91161.0,0.3608]
[1731730416784,0.06823853,91177.0,91161.0,0.3608]
[1731730416988,0.06823853,91177.0,91169.0,0.3608]
[1731730417188,0.05332053,91176.0,91169.0,0.3608]
[1731730417388,0.19570781,91183.0,91170.0,0.06823853]
[1731730417679,0.05331895,91182.0,91170.0,0.13133853]
[1731730418385,0.05451468,91183.0,91170.0,0.13133853]
[1731730418976,0.06823853,91171.0,91170.0,0.0631]
[1731730419179,0.06823853,91175.0,91169.0,0.3608]
[1731730419381,0.05332088,91174.0,91169.0,0.3608]
[1731730419579,0.05332148,91173.0,91169.0,0.3608]
[1731730419884,0.06823853,91175.0,91169.0,0.3608]
[1731730420083,0.05332157,91174.0,91169.0,0.3608]
[1731730420984,0.22807393,91179.0,91169.0,0.3608]
[1731730421185,0.24889471,91178.0,91169.0,0.3608]
[1731730421487,0.24889471,91177.0,91169.0,0.3608]
[1731730421678,0.05332078,91176.0,91169.0,0.3608]
[1731730421874,0.10397615,91172.0,91162.0,0.0327]
[1731730422085,0.33072625,91172.0,91162.0,0.0327]
[1731730422284,0.41890333,91171.0,91162.0,0.0327]
[1731730422489,0.10397615,91165.0,91162.0,0.0327]
[1731730422787,0.19215323,91164.0,91162.0,0.0327]
[1731730424091,0.19248584,91163.0,91162.0,0.0327]
[1731730424384,0.13915936,91163.0,91162.0,0.0327]
[1731730426086,0.05332648,91164.0,91162.0,0.0327]
[1731730426087,0.10940366,91164.0,91162.0,0.0327]
[1731730426291,0.00342648,91163.0,91162.0,0.0327]
[1731730426584,0.19613846,91163.0,91162.0,0.0327]
[1731730426784,0.3608,91179.0,91162.0,0.0327]
[1731730426785,0.19613846,91164.0,91162.0,0.0327]
[1731730426984,0.19613846,91163.0,91162.0,0.0327]
[1731730427586,0.19613846,91164.0,91162.0,0.0327]
[1731730427992,0.19613846,91165.0,91162.0,0.0327]
[1731730428395,0.19613846,91167.0,91162.0,0.0327]
[1731730428989,0.05437027,91179.0,91162.0,0.0327]
[1731730428990,0.19613846,91166.0,91162.0,0.0327]
[1731730429193,0.19613846,91166.0,91163.0,0.09104]
[1731730429194,0.01008718,91166.0,91163.0,0.09104]
[1731730429396,0.01010272,91165.0,91163.0,0.09104]
[1731730429592,0.2267501,91178.0,91163.0,0.09104]
[1731730429593,0.01010272,91164.0,91163.0,0.09104]
[1731730430091,0.01010272,91164.0,91163.0,0.42012]
[1731730430092,0.01010359,91164.0,91163.0,0.42012]
[1731730430390,0.0051,91182.0,91163.0,1.15940596]
[1731730430593,0.00013388,91183.0,91181.0,0.3608]
[1731730430783,0.00164564,91191.0,91182.0,0.0646]
[1731730431095,0.00164564,91191.0,91190.0,0.3608]
[1731730431788,0.00175862,91191.0,91190.0,0.3608]
[1731730434891,0.13237742,91191.0,91190.0,0.3608]
[1731730435301,0.00175862,91191.0,91190.0,0.3608]
[1731730435893,0.13237742,91191.0,91190.0,0.3608]
[1731730436298,0.00175862,91191.0,91190.0,0.3608]
[1731730437303,0.16495597,91191.0,91190.0,0.3608]
[1731730438190,0.00175862,91191.0,91190.0,0.3608]
[1731730439698,0.0051,91209.0,91191.0,0.32896]
[1731730439897,0.0051,91216.0,91208.0,0.7216]
[1731730440198,0.0365,91231.0,91209.0,0.091]
[1731730440502,0.0314,91231.0,91229.0,0.3608]
[1731730440701,0.13659768,91230.0,91212.0,0.0051]
[1731730440901,0.10397615,91214.0,91208.0,0.3608]
[1731730441102,0.10397615,91214.0,91203.0,0.091]
[1731730441400,0.08369992,91213.0,91200.0,0.3608]
[1731730441603,0.10397615,91207.0,91200.0,0.3608]
[1731730442099,0.00999278,91206.0,91200.0,0.3608]
[1731730442303,0.00999278,91205.0,91200.0,0.3608]
[1731730442504,0.00999278,91204.0,91200.0,0.3608]
[1731730442699,0.00999278,91203.0,91200.0,0.3608]
[1731730442892,0.00999278,91202.0,91200.0,0.3608]
[1731730443101,0.00999278,91201.0,91200.0,0.3608]
[1731730444903,0.10397615,91205.0,91200.0,0.3608]
[1731730445207,0.00992413,91201.0,91200.0,0.3608]
[1731730445395,0.01984759,91201.0,91200.0,0.3608]
[1731730446205,0.01984759,91201.0,91185.0,0.3659]
[1731730446402,0.01984759,91201.0,91185.0,0.3608]
[1731730446403,0.10397615,91192.0,91185.0,0.3608]
[1731730446607,0.07222346,91191.0,91185.0,0.3608]
[1731730446899,0.00992346,91190.0,91185.0,0.3608]
[1731730447897,0.0623,91191.0,91185.0,0.3608]
[1731730448406,0.01003948,91190.0,91185.0,0.3608]
[1731730448605,0.01003948,91190.0,91184.0,0.00012714]
[1731730448814,0.10397615,91185.0,91184.0,0.00012714]
[1731730449000,0.11401563,91185.0,91184.0,0.00012714]
[1731730449197,0.11401563,91185.0,91184.0,0.00889714]
[1731730451210,0.11417101,91185.0,91184.0,0.00889714]
[1731730455208,0.11406295,91185.0,91184.0,0.00889714]
[1731730456711,0.0100868,91185.0,91184.0,0.00889714]
[1731730457916,0.10397615,91189.0,91184.0,0.00889714]
[1731730458112,0.00985674,91185.0,91184.0,0.00889714]
[1731730458815,0.00988241,91187.0,91184.0,0.00889714]
[1731730459018,0.00988241,91186.0,91184.0,0.00889714]
[1731730459205,0.00988241,91185.0,91184.0,0.00889714]
[1731730459898,0.06319799,91185.0,91184.0,0.00889714]
[1731730461008,0.06319797,91185.0,91184.0,0.00889714]
[1731730461208,0.00988241,91185.0,91184.0,0.00889714]
[1731730463609,0.0309,91191.0,91184.0,0.00889714]
[1731730463815,0.06331532,91190.0,91184.0,0.00889714]
[1731730464115,0.010002,91189.0,91184.0,0.00889714]
[1731730464414,0.01001039,91188.0,91184.0,0.00889714]
[1731730464613,0.01001039,91187.0,91184.0,0.00889714]
[1731730464815,0.01001039,91186.0,91184.0,0.00889714]
[1731730465017,0.01001039,91185.0,91184.0,0.00889714]
[1731730465608,0.01001039,91190.0,91184.0,0.00889714]
[1731730465906,0.0309,91191.0,91184.0,0.00889714]
[1731730465907,0.06335171,91189.0,91184.0,0.00889714]
[1731730466212,0.0100379,91188.0,91184.0,0.00889714]
[1731730466412,0.0100379,91187.0,91184.0,0.00889714]
[1731730466618,0.0100379,91186.0,91184.0,0.00889714]
[1731730466813,0.0100379,91185.0,91184.0,0.00889714]
[1731730467115,0.0100379,91190.0,91184.0,0.00889714]
[1731730467320,0.0100379,91189.0,91184.0,0.00889714]
[1731730467515,0.0100379,91188.0,91184.0,0.00889714]
[1731730467821,0.0100379,91187.0,91184.0,0.00889714]
[1731730468121,0.0100379,91186.0,91184.0,0.00889714]
[1731730468421,0.0100379,91190.0,91184.0,0.00889714]
[1731730468715,0.0100379,91189.0,91184.0,0.00889714]
[1731730468909,0.0100379,91190.0,91184.0,0.00889714]
[1731730469110,0.0100379,91189.0,91184.0,0.00889714]
[1731730469318,0.0100379,91188.0,91184.0,0.00889714]
[1731730469622,0.0100379,91187.0,91184.0,0.00889714]
[1731730469816,0.0100379,91186.0,91184.0,0.00889714]
[1731730470615,0.02689781,91186.0,91184.0,0.00889714]
[1731730471318,0.02689781,91186.0,91180.0,0.3608]
[1731730471514,0.19025482,91186.0,91180.0,0.3608]
[1731730471817,0.0276866,91185.0,91180.0,0.3608]
[1731730472407,0.19104361,91185.0,91180.0,0.3608]
[1731730472612,0.0276866,91184.0,91180.0,0.3608]
[1731730472811,0.0276866,91183.0,91180.0,0.3608]
[1731730473023,0.0276866,91182.0,91180.0,0.3608]
[1731730473321,0.16335701,91184.0,91180.0,0.3608]
[1731730473322,0.0276866,91181.0,91180.0,0.3608]
[1731730473912,0.32915305,91180.0,91164.0,1e-06]
[1731730474218,0.46477615,91165.0,91137.0,0.62367853]
[1731730474413,0.46477615,91165.0,91137.0,0.36176]
[1731730474414,0.16336405,91147.0,91137.0,0.36176]
[1731730474725,0.01064869,91146.0,91137.0,0.3608]
[1731730474910,0.09096,91153.0,91137.0,0.3608]
[1731730475114,0.16336405,91148.0,91137.0,0.3608]
[1731730475318,0.17356514,91147.0,91137.0,0.3608]
[1731730475527,0.01020109,91146.0,91137.0,0.3608]
[1731730476115,0.01020109,91145.0,91137.0,0.3608]
[1731730476322,0.01020109,91144.0,91137.0,0.3608]
[1731730476522,0.01020109,91143.0,91137.0,0.3608]
[1731730478320,0.25436405,91152.0,91137.0,0.3608]
[1731730478530,0.01019801,91151.0,91137.0,0.3608]
[1731730478722,0.0102903,91150.0,91137.0,0.3608]
[1731730478918,0.01019801,91149.0,91137.0,0.3608]
[1731730479317,0.01019801,91149.0,91145.0,0.3608]
[1731730479922,0.01019801,91149.0,91136.0,0.3608]
[1731730480518,0.01019801,91149.0,91144.0,0.3608]
[1731730480827,9.229e-05,91150.0,91144.0,0.3608]
[1731730482718,9.229e-05,91150.0,91145.0,0.091]
[1731730485629,9.229e-05,91150.0,91149.0,0.3608]
[1731730485825,9.229e-05,91150.0,91149.0,0.68992]
[1731730486021,0.38274811,91171.0,91149.0,0.68992]
[1731730486227,0.18989662,91179.0,91164.0,0.3608]
[1731730486532,0.18989662,91179.0,91165.0,0.0329]
[1731730486533,0.10397615,91171.0,91165.0,0.0329]
[1731730487125,0.00011377,91170.0,91165.0,0.0329]
[1731730487836,0.00011377,91170.0,91159.0,0.3608]
[1731730488022,0.10397615,91160.0,91159.0,0.3608]
[1731730489132,0.3608,91169.0,91159.0,0.3608]
[1731730489338,0.00011377,91170.0,91168.0,0.3608]
[1731730489724,0.00011377,91170.0,91169.0,0.0323]
[1731730491942,0.00011377,91170.0,91169.0,0.0639]
[1731730493135,0.01044684,91170.0,91169.0,0.0639]
[1731730497531,0.0269674,91170.0,91169.0,0.0639]
[1731730500234,0.0269674,91170.0,91169.0,0.3608]
[1731730502440,0.0269674,91170.0,91161.0,0.3608]
[1731730502647,0.02685363,91169.0,91161.0,0.3608]
[1731730502832,0.02685363,91168.0,91161.0,0.3608]
[1731730503138,0.00011377,91170.0,91161.0,0.3608]
[1731730503139,0.02685363,91167.0,91161.0,0.3608]
[1731730503337,0.02685363,91166.0,91161.0,0.3608]
[1731730503535,0.02685363,91165.0,91161.0,0.3608]
[1731730503743,0.02685363,91164.0,91161.0,0.3608]
[1731730503943,0.01033307,91163.0,91161.0,0.3608]
[1731730504136,0.01033307,91162.0,91161.0,0.3608]
[1731730504338,0.00011377,91170.0,91161.0,0.3608]
[1731730504740,0.02702061,91169.0,91161.0,0.3608]
[1731730504939,0.01662807,91168.0,91161.0,0.3608]
[1731730505139,0.02702061,91168.0,91161.0,0.3608]
[1731730505445,0.00011377,91170.0,91161.0,0.3608]
[1731730505446,0.02702061,91167.0,91161.0,0.3608]
[1731730505648,0.02702061,91166.0,91161.0,0.3608]
[1731730505851,0.02702061,91165.0,91161.0,0.3608]
[1731730506150,0.02693785,91164.0,91161.0,0.3608]
[1731730506639,0.02693785,91169.0,91161.0,0.3608]
[1731730506844,0.01649527,91168.0,91161.0,0.3608]
[1731730507142,0.02685598,91167.0,91161.0,0.3608]
[1731730507351,0.01036071,91166.0,91161.0,0.3608]
[1731730507643,0.01036071,91165.0,91161.0,0.3608]
[1731730507849,0.01036071,91164.0,91161.0,0.3608]
[1731730508039,0.01036071,91163.0,91161.0,0.3608]
[1731730508241,0.01036071,91162.0,91161.0,0.3608]
[1731730512446,0.17372476,91162.0,91161.0,0.3608]
[1731730513750,0.06368461,91162.0,91161.0,0.3608]
[1731730514156,0.01036071,91162.0,91161.0,0.3608]
[1731730514559,0.17369804,91162.0,91161.0,0.3608]
[1731730514858,0.06346328,91162.0,91154.0,0.0311]
[1731730515070,0.16334263,91155.0,91148.0,0.09096]
[1731730515352,0.16334155,91153.0,91148.0,0.09096]
[1731730515754,0.01014006,91152.0,91148.0,0.09096]
[1731730515957,0.16334155,91153.0,91148.0,0.09096]
[1731730515958,0.01013206,91151.0,91148.0,0.09096]
[1731730516152,0.01013206,91150.0,91148.0,0.09096]
[1731730516350,0.01013206,91149.0,91148.0,0.09096]
[1731730518948,0.13064228,91153.0,91148.0,0.09096]
[1731730519155,0.13064228,91154.0,91149.0,0.00877]
[1731730519351,0.02193954,91174.0,91149.0,0.00877]
[1731730519352,0.13064228,91152.0,91149.0,0.00877]
[1731730519556,0.13064228,91153.0,91149.0,0.00877]
[1731730519964,0.13064228,91152.0,91149.0,0.00877]
[1731730520257,0.0051,91166.0,91151.0,0.26287853]
[1731730520258,0.13064228,91163.0,91151.0,0.26287853]
[1731730520453,0.13064228,91163.0,91149.0,0.00877]
[1731730520454,0.13064228,91164.0,91159.0,0.3608]
[1731730520650,0.00011377,91170.0,91160.0,0.032]
[1731730520651,0.13064228,91166.0,91160.0,0.032]
[1731730521051,0.13064228,91167.0,91160.0,0.032]
[1731730521353,0.13064228,91166.0,91160.0,0.032]
[1731730522454,0.13064228,91165.0,91160.0,0.032]
[1731730523263,0.13064228,91164.0,91160.0,0.032]
[1731730523459,0.13064228,91163.0,91159.0,0.3608]
[1731730524667,0.21905993,91170.0,91159.0,0.3608]
[1731730524668,0.13064228,91162.0,91159.0,0.3608]
[1731730524966,0.13064228,91166.0,91159.0,0.3608]
[1731730525860,0.13064228,91165.0,91159.0,0.3608]
[1731730526259,0.13064228,91166.0,91159.0,0.3608]
[1731730526456,0.13064228,91165.0,91159.0,0.3608]
[1731730526659,0.13075605,91170.0,91161.0,0.26287853]
[1731730526859,0.13075605,91170.0,91159.0,0.46477615]
[1731730526860,0.00011377,91170.0,91169.0,0.3608]
[1731730527157,0.05343252,91170.0,91169.0,0.3608]
[1731730527462,0.05343252,91170.0,91169.0,0.45172]
[1731730527853,0.16337305,91175.0,91169.0,0.45172]
[1731730528049,0.00056001,91177.0,91174.0,0.3608]
[1731730528050,0.16337305,91177.0,91174.0,0.3608]
[1731730528256,0.16337305,91178.0,91174.0,0.3608]
[1731730528855,8.913e-05,91177.0,91174.0,0.3608]
[1731730530162,8.913e-05,91177.0,91169.0,0.3608]
[1731730530463,0.10397615,91170.0,91154.0,0.3608]
[1731730530653,0.16326629,91160.0,91154.0,0.3608]
[1731730530966,0.16326629,91155.0,91150.0,0.0332]
[1731730531266,0.10397615,91152.0,91149.0,0.36957]
[1731730531566,0.00981504,91151.0,91149.0,0.36957]
[1731730531771,0.00981504,91150.0,91149.0,0.00877]
[1731730532067,0.00985042,91150.0,91149.0,0.00877]
[1731730532360,0.0304,91154.0,91149.0,0.00877]
[1731730532361,0.00985042,91153.0,91149.0,0.00877]
[1731730532562,0.16321678,91150.0,91149.0,0.00877]
[1731730532766,0.1730672,91150.0,91149.0,0.00877]
[1731730533469,0.00985042,91150.0,91149.0,0.00877]
[1731730534168,0.1730672,91150.0,91149.0,0.00877]
[1731730534368,0.00985042,91150.0,91149.0,0.00877]
[1731730535269,0.00985228,91150.0,91149.0,0.00877]
[1731730535964,0.14041914,91150.0,91149.0,0.00877]
[1731730536761,0.13056686,91150.0,91149.0,0.00877]
[1731730537459,0.13056686,91151.0,91149.0,0.00877]
[1731730539469,0.23454301,91152.0,91149.0,0.00877]
[1731730539666,0.00991282,91151.0,91149.0,0.00877]
[1731730539862,0.00991282,91150.0,91149.0,0.00877]
[1731730540661,0.00991218,91150.0,91149.0,0.00877]
[1731730541264,0.37080131,91150.0,91149.0,0.00877]
[1731730541470,0.69992131,91150.0,91149.0,0.00877]
[1731730541658,0.69992131,91150.0,91142.0,9.548e-05]
[1731730541861,0.23442083,91143.0,91142.0,9.548e-05]
[1731730542069,0.11388833,91143.0,91142.0,9.548e-05]
[1731730545463,0.11388833,91143.0,91142.0,1.684e-05]
[1731730546267,0.16938777,91143.0,91142.0,1.684e-05]
[1731730547874,0.11388833,91143.0,91142.0,1.684e-05]
[1731730548073,0.3608,91147.0,91142.0,1.684e-05]
[1731730548074,0.16304028,91147.0,91142.0,1.684e-05]
[1731730548272,0.00985726,91143.0,91142.0,1.684e-05]
[1731730551071,8.913e-05,91150.0,91142.0,1.684e-05]
[1731730551277,0.00990952,91149.0,91142.0,1.684e-05]
[1731730551573,0.00990952,91148.0,91142.0,1.684e-05]
[1731730551784,8.913e-05,91150.0,91142.0,1.684e-05]
[1731730553472,0.10397615,91149.0,91142.0,1.684e-05]
[1731730553983,0.00973101,91148.0,91142.0,1.684e-05]
[1731730554168,0.00973137,91147.0,91142.0,1.684e-05]
[1731730554370,0.10397615,91149.0,91142.0,1.684e-05]
[1731730554682,0.00973152,91148.0,91142.0,1.684e-05]
[1731730554987,0.00974514,91147.0,91142.0,1.684e-05]
[1731730555283,8.913e-05,91150.0,91142.0,1.684e-05]
[1731730555473,0.00974615,91149.0,91148.0,0.3608]
[1731730555786,8.913e-05,91150.0,91148.0,0.3608]
[1731730557279,8.913e-05,91150.0,91148.0,0.41440648]
[1731730558473,8.913e-05,91150.0,91148.0,0.67728501]
[1731730559389,8.913e-05,91150.0,91148.0,0.41440648]
[1731730560973,8.913e-05,91150.0,91149.0,0.32912]
[1731730561178,0.0051,91161.0,91149.0,0.32912]
[1731730561380,0.1354557,91170.0,91160.0,0.3608]
[1731730561580,0.00980845,91169.0,91161.0,0.12094]
[1731730561791,0.1303557,91171.0,91161.0,0.15214]
[1731730561792,0.0098016,91168.0,91161.0,0.15214]
[1731730561986,0.0098016,91167.0,91161.0,0.15214]
[1731730562186,0.0098016,91166.0,91161.0,0.15214]
[1731730563188,0.0098016,91166.0,91162.0,0.00877]
[1731730564499,0.0098016,91166.0,91163.0,0.09084]
[1731730565491,0.00977601,91165.0,91163.0,0.09084]
[1731730565793,7.864e-05,91167.0,91163.0,0.09084]
[1731730565990,0.00974276,91164.0,91163.0,0.09084]
[1731730567786,0.1401825,91164.0,91163.0,0.09084]
[1731730567993,7.864e-05,91167.0,91163.0,0.09084]
[1731730568193,0.00968274,91166.0,91164.0,0.0323]
[1731730568400,7.864e-05,91167.0,91164.0,0.0323]
[1731730568608,0.00968132,91166.0,91164.0,0.0323]
[1731730568784,0.00968133,91166.0,91164.0,0.0323]
[1731730568984,7.864e-05,91167.0,91164.0,0.0323]
[1731730569788,7.864e-05,91167.0,91166.0,0.3608]
[1731730582803,0.00988385,91167.0,91166.0,0.3608]
[1731730584401,7.864e-05,91167.0,91166.0,0.3608]
[1731730584796,0.00991406,91167.0,91166.0,0.3608]
[1731730586204,0.00992385,91167.0,91166.0,0.3608]
[1731730586410,0.00992385,91167.0,91166.0,0.62326974]
[1731730586608,0.00992384,91167.0,91166.0,0.62326974]
[1731730587307,0.00992384,91167.0,91166.0,0.3608]
[1731730590303,0.00993096,91167.0,91166.0,0.3608]
[1731730590504,0.00993096,91167.0,91166.0,0.45156]
[1731730592107,0.00993096,91167.0,91166.0,0.81236]
[1731730593395,7.864e-05,91167.0,91166.0,0.81236]
[1731730593600,0.00992226,91167.0,91166.0,0.81236]
[1731730593809,0.00992226,91167.0,91166.0,0.09076]
[1731730594013,0.00992226,91167.0,91166.0,1.00956292]
[1731730594808,0.00992226,91167.0,91166.0,1.0777785]
[1731730595411,0.00992226,91167.0,91166.0,0.88057558]
[1731730597512,0.01002616,91167.0,91166.0,0.88057558]
[1731730597718,7.864e-05,91167.0,91166.0,0.88057558]
[1731730597904,0.01002748,91167.0,91166.0,0.88057558]
[1731730602520,0.01002748,91167.0,91166.0,1.08668137]
[1731730602916,0.17381606,91167.0,91166.0,1.08668137]
[1731730603619,0.17381679,91167.0,91166.0,1.08668137]
[1731730603818,0.16387247,91167.0,91166.0,1.08668137]
[1731730604411,0.17371069,91167.0,91166.0,1.08668137]
[1731730604819,0.17371069,91167.0,91166.0,1.08668182]
[1731730605016,0.00991686,91167.0,91166.0,0.88934558]
[1731730605218,0.17371069,91167.0,91166.0,1.08668297]
[1731730606123,0.17371069,91167.0,91166.0,1.08664297]
[1731730606519,0.00991686,91167.0,91166.0,1.08664297]
[1731730606828,0.1737342,91167.0,91166.0,1.08664297]
[1731730607216,0.00991686,91167.0,91166.0,1.08664297]
[1731730607416,0.00983112,91167.0,91166.0,1.08664297]
[1731730607617,0.1736632,91167.0,91166.0,1.08664297]
[1731730607822,0.17366312,91167.0,91166.0,1.08664297]
[1731730608321,0.00983104,91167.0,91166.0,1.08664297]
[1731730608917,0.17365889,91167.0,91166.0,1.08664297]
[1731730609322,0.00983104,91167.0,91166.0,1.08664297]
[1731730609525,0.00983104,91167.0,91166.0,1.08667357]
[1731730609824,0.00983104,91167.0,91166.0,0.88930558]
[1731730610023,0.00983104,91167.0,91166.0,1.08667357]
[1731730610331,0.00983104,91167.0,91166.0,0.88930558]
[1731730610925,7.864e-05,91167.0,91166.0,0.88930558]
[1731730611118,0.00990094,91167.0,91166.0,0.88930558]
[1731730611314,0.00988341,91167.0,91166.0,0.88930558]
[1731730612328,0.00989626,91167.0,91166.0,0.88930558]
[1731730614028,0.14096413,91167.0,91166.0,0.88930558]
[1731730614530,0.13114651,91167.0,91166.0,0.88930558]
[1731730614729,0.14099764,91167.0,91166.0,0.88930558]
[1731730616326,0.14099764,91167.0,91166.0,0.79858558]
[1731730616622,0.14099764,91167.0,91166.0,0.88930558]
[1731730617423,0.06324479,91167.0,91166.0,0.88930558]
[1731730617823,0.06324479,91167.0,91166.0,0.16770558]
[1731730618136,0.06325224,91167.0,91166.0,0.88930558]
[1731730618439,0.06325224,91167.0,91166.0,1.08670064]
[1731730618440,0.07312044,91167.0,91166.0,1.08670064]
[1731730618740,0.06326186,91167.0,91166.0,0.88930558]
[1731730619928,0.06326186,91167.0,91166.0,0.16770558]
[1731730620328,0.06326186,91167.0,91166.0,0.88930558]
[1731730620949,0.05339366,91167.0,91166.0,0.88930558]
[1731730621266,0.06323507,91167.0,91166.0,0.88930558]
[1731730621662,0.06323507,91167.0,91166.0,1.08670065]
[1731730621853,0.06323507,91167.0,91166.0,0.88930558]
[1731730622050,0.06323507,91167.0,91166.0,1.08670065]
[1731730622256,0.06323507,91167.0,91166.0,0.88930558]
[1731730622937,0.06323507,91167.0,91166.0,1.08670065]
[1731730623263,0.06323507,91167.0,91166.0,0.88930558]
[1731730623467,0.06323507,91167.0,91166.0,1.08670065]
[1731730624268,0.06323507,91167.0,91166.0,0.52850558]
[1731730625263,0.06323507,91167.0,91166.0,0.72590065]
[1731730625458,0.14097066,91167.0,91166.0,0.52850558]
[1731730625869,0.14097398,91167.0,91166.0,0.52850558]
[1731730626170,0.13113257,91167.0,91166.0,0.52850558]
[1731730627464,7.864e-05,91167.0,91166.0,0.85138036]
[1731730627672,7.864e-05,91167.0,91166.0,0.91959594]
[1731730627872,7.864e-05,91167.0,91166.0,0.78316478]
[1731730628275,7.864e-05,91167.0,91166.0,0.85138036]
[1731730630566,0.00982957,91167.0,91166.0,0.85138036]
[1731730630772,7.864e-05,91167.0,91166.0,0.85138036]
[1731730631376,0.13105393,91175.0,91166.0,1.24867594]
[1731730631577,0.13105393,91176.0,91174.0,0.42901558]
[1731730631786,0.13105393,91177.0,91174.0,0.42901558]
[1731730632087,0.13105393,91177.0,91176.0,0.26306564]
[1731730632476,0.13105393,91177.0,91174.0,0.42901558]
[1731730632477,0.05331019,91177.0,91174.0,0.42901558]
[1731730632777,0.05331019,91176.0,91174.0,0.42901558]
[1731730632970,0.05331019,91175.0,91174.0,0.42901558]
[1731730633478,0.22881955,91181.0,91174.0,0.42901558]
[1731730633676,0.05331019,91180.0,91175.0,0.3608]
[1731730635083,0.05331019,91179.0,91175.0,0.3608]
[1731730635278,0.05331019,91178.0,91175.0,0.3608]
[1731730635583,0.05331019,91177.0,91175.0,0.3608]
[1731730635778,0.19591955,91183.0,91175.0,0.3608]
[1731730635980,0.0051,91185.0,91182.0,0.3608]
[1731730636184,0.0324,91195.0,91183.0,0.0906]
[1731730636185,0.16373524,91184.0,91183.0,0.0906]
[1731730636380,0.16373524,91184.0,91183.0,0.15881558]
[1731730636682,0.16373524,91186.0,91183.0,0.16758558]
[1731730636887,0.16373524,91186.0,91185.0,0.06821558]
[1731730637083,0.16373524,91187.0,91185.0,0.06821558]
[1731730637588,0.16373524,91188.0,91185.0,0.06821558]
[1731730637793,0.16373524,91187.0,91185.0,0.06821558]
[1731730638190,0.16373524,91186.0,91185.0,0.06821558]
[1731730638383,0.16373524,91187.0,91185.0,0.06821558]
[1731730638879,0.0051,91193.0,91185.0,0.06821558]
[1731730638880,0.16373524,91186.0,91185.0,0.06821558]
[1731730639479,0.16373524,91187.0,91185.0,0.06821558]
[1731730640379,0.16373524,91188.0,91185.0,0.06821558]
[1731730640581,0.13086503,91188.0,91185.0,0.06821558]
[1731730641271,0.13086503,91189.0,91187.0,0.3608]
[1731730641472,0.13251044,91190.0,91187.0,0.3608]
[1731730641895,0.00164541,91190.0,91187.0,0.41638207]
[1731730642168,0.00164541,91190.0,91188.0,0.0318]
[1731730642659,0.00164541,91190.0,91188.0,0.10001558]
[1731730643150,0.00164541,91190.0,91188.0,0.0318]
[1731730643550,0.00164541,91190.0,91188.0,0.10001558]
[1731730643853,0.00164541,91190.0,91188.0,0.29729449]
[1731730644049,0.00164541,91190.0,91189.0,0.19688723]
[1731730644249,0.00164541,91190.0,91189.0,0.19688467]
[1731730644449,0.00164541,91190.0,91188.0,0.10001558]
[1731730645057,0.00164541,91190.0,91188.0,0.0318]
[1731730645253,0.00164541,91190.0,91188.0,0.2286863]
[1731730645456,0.00164541,91190.0,91188.0,0.0318]
[1731730645755,0.00164541,91190.0,91188.0,0.2286863]
[1731730645956,0.00164541,91190.0,91188.0,0.10001558]
[1731730646162,0.00164541,91190.0,91188.0,0.29690188]
[1731730646357,0.00164541,91190.0,91189.0,0.1968233]
[1731730646564,0.00164541,91190.0,91189.0,0.19679494]
[1731730647052,0.00164541,91190.0,91188.0,0.32841052]
[1731730647252,0.00164541,91190.0,91188.0,0.0318]
[1731730647465,0.00164541,91190.0,91189.0,0.15881558]
[1731730650466,0.13086503,91197.0,91189.0,0.15865558]
[1731730650666,0.0051,91198.0,91189.0,0.15865558]
[1731730650667,0.13086503,91196.0,91189.0,0.15865558]
[1731730650966,0.13086503,91198.0,91189.0,0.15865558]
[1731730651158,0.13086503,91197.0,91189.0,0.15865558]
[1731730651359,0.13086503,91198.0,91195.0,0.3608]
[1731730652263,0.00969935,91197.0,91196.0,0.09044]
[1731730652455,0.14056463,91197.0,91196.0,0.09044]
[1731730652849,0.0096996,91197.0,91196.0,0.09044]
[1731730653254,0.14056463,91197.0,91196.0,0.09044]
[1731730653858,0.0096996,91197.0,91196.0,0.09044]
[1731730654267,0.13086503,91198.0,91196.0,0.09044]
[1731730654478,0.13086503,91199.0,91195.0,0.42997558]
[1731730654662,0.13086503,91196.0,91195.0,0.42901558]
[1731730654861,0.13086503,91197.0,91195.0,0.51945558]
[1731730655057,0.13086503,91196.0,91195.0,0.51945558]
[1731730655565,0.22691955,91205.0,91195.0,0.51945558]
[1731730655767,0.05330215,91204.0,91195.0,0.51945558]
[1731730656068,0.19591955,91202.0,91195.0,0.51945558]
[1731730656458,0.2492217,91201.0,91195.0,0.51945558]
[1731730656761,0.05330215,91200.0,91195.0,0.51945558]
[1731730656963,0.05330215,91199.0,91195.0,0.51945558]
[1731730657160,0.05330215,91198.0,91195.0,0.51945558]
[1731730657470,0.05330215,91197.0,91195.0,0.51945558]
[1731730657664,0.05330215,91196.0,91195.0,0.51945558]
[1731730658565,0.19591955,91201.0,91195.0,0.51945558]
[1731730658773,0.05330215,91200.0,91195.0,0.51945558]
[1731730659062,0.05330215,91199.0,91196.0,0.00877]
[1731730659256,0.05330215,91198.0,91196.0,0.00877]
[1731730659457,0.05330215,91197.0,91196.0,0.00877]
[1731730659754,0.19591955,91200.0,91196.0,0.00877]
[1731730659966,0.05330215,91199.0,91196.0,0.00877]
[1731730660157,0.05330215,91198.0,91196.0,0.00877]
[1731730660362,0.19591955,91202.0,91197.0,0.06821558]
[1731730660667,0.19591955,91202.0,91197.0,0.42901558]
[1731730660978,0.05329889,91201.0,91197.0,0.42901558]
[1731730661164,0.16365268,91198.0,91197.0,0.3608]
[1731730661572,0.05329792,91198.0,91197.0,0.3608]
[1731730661761,0.19591955,91203.0,91197.0,0.3608]
[1731730661960,0.031,91205.0,91197.0,0.3608]
[1731730661961,0.16366917,91198.0,91197.0,0.3608]
[1731730662467,0.16366917,91198.0,91197.0,0.42901558]